[Event "Titled Tuesday Blitz June 21 Early 2022"]
[White "Lima, Kleyton Alcantara"]
[Black "Jaferian, Koosha"]
[WhiteFideId "22718397"]
[BlackFideId "12507440"]
[WhiteElo "1951"]
[BlackElo "2030"]
[Result "0-1"]
[Round "01"]
[TimeControl "180+1"]
[Date "2022.06.22"]
[WhiteClock "0:01:06"]
[BlackClock "0:01:42"]

1. e4 {[%clk 0:02:58]}  c6 {[%clk 0:03:00]} 2. Nf3 {[%clk 0:02:58]}  d5 {[%clk 0:03:01]} 3. Nc3 {[%clk 0:02:59]}  Bg4 {[%clk 0:03:01]} 4. d4 {[%clk 0:02:58]}  e6 {[%clk 0:02:59]} 5. Be3 {[%clk 0:02:54]}  Nf6 {[%clk 0:02:57]} 6. e5 {[%clk 0:02:54]}  Nfd7 {[%clk 0:02:58]} 7. h3 {[%clk 0:02:50]}  Bxf3 {[%clk 0:02:58]} 8. gxf3 {[%clk 0:02:51]}  c5 {[%clk 0:02:57]} 9. Qd2 {[%clk 0:02:51]}  cxd4 {[%clk 0:02:57]} 10. Bxd4 {[%clk 0:02:50]}  Nc6 {[%clk 0:02:58]} 11. f4 {[%clk 0:02:48]}  Nxd4 {[%clk 0:02:57]} 12. Qxd4 {[%clk 0:02:48]}  Bc5 {[%clk 0:02:58]} 13. Qd2 {[%clk 0:02:49]}  Qb6 {[%clk 0:02:58]} 14. O-O-O {[%clk 0:02:41]}  Bxf2 {[%clk 0:02:54]} 15. Kb1 {[%clk 0:02:39]}  Be3 {[%clk 0:02:50]} 16. Qg2 {[%clk 0:02:39]}  g6 {[%clk 0:02:39]} 17. Nb5 {[%clk 0:02:31]}  O-O {[%clk 0:02:33]} 18. Qg4 {[%clk 0:02:25]}  a6 {[%clk 0:02:27]} 19. Nc3 {[%clk 0:02:17]}  Qb4 {[%clk 0:02:13]} 20. Ne2 {[%clk 0:02:10]}  h5 {[%clk 0:02:13]} 21. Qf3 {[%clk 0:02:09]}  Ba7 {[%clk 0:02:11]} 22. Qb3 {[%clk 0:01:51]}  Qe7 {[%clk 0:02:05]} 23. Bg2 {[%clk 0:01:45]}  Nc5 {[%clk 0:02:05]} 24. Qa3 {[%clk 0:01:42]}  Rfc8 {[%clk 0:01:58]} 25. Bf3 {[%clk 0:01:42]}  b5 {[%clk 0:01:54]} 26. Nd4 {[%clk 0:01:39]}  Rab8 {[%clk 0:01:52]} 27. Rhg1 {[%clk 0:01:36]}  b4 {[%clk 0:01:52]} 28. Qe3 {[%clk 0:01:27]}  Na4 {[%clk 0:01:51]} 29. Bxh5 {[%clk 0:01:23]}  Nc3+ {[%clk 0:01:51]} 30. Ka1 {[%clk 0:01:13]}  Nxd1 {[%clk 0:01:50]} 31. Bxd1 {[%clk 0:01:14]}  Rc4 {[%clk 0:01:45]} 32. Nf5 {[%clk 0:01:08]}  Bxe3 {[%clk 0:01:43]} 33. Nxe7+ {[%clk 0:01:07]}  Kf8 {[%clk 0:01:44]} 34. Rg3 {[%clk 0:01:06]}  Bxf4 {[%clk 0:01:42]} 35. Rf3 {[%clk 0:01:06]}  Kxe7 {[%clk 0:01:42]} 0-1


[Site "https://www.chess.com"]

[Event "Titled Tuesday Blitz June 21 Early 2022"]
[White "Lopez Del Alamo, Antonio"]
[Black "Araujo Sanchez, Josue"]
[WhiteFideId "2227339"]
[BlackFideId "6416896"]
[WhiteElo "2089"]
[BlackElo "2339"]
[Result "1/2-1/2"]
[Round "01"]
[TimeControl "180+1"]
[Date "2022.06.22"]
[WhiteClock "0:00:18"]
[BlackClock "0:00:06"]

1. e4 {[%clk 0:02:51]}  c5 {[%clk 0:02:59]} 2. Nf3 {[%clk 0:02:44]}  d6 {[%clk 0:02:59]} 3. d4 {[%clk 0:02:37]}  cxd4 {[%clk 0:03:00]} 4. Nxd4 {[%clk 0:02:34]}  Nf6 {[%clk 0:03:00]} 5. Nc3 {[%clk 0:02:33]}  a6 {[%clk 0:02:56]} 6. Be2 {[%clk 0:02:33]}  e5 {[%clk 0:02:55]} 7. Nb3 {[%clk 0:02:33]}  Be7 {[%clk 0:02:55]} 8. Be3 {[%clk 0:02:33]}  Be6 {[%clk 0:02:55]} 9. Nd5 {[%clk 0:02:34]}  Nbd7 {[%clk 0:02:52]} 10. Qd3 {[%clk 0:02:33]}  O-O {[%clk 0:02:41]} 11. c4 {[%clk 0:02:33]}  Bxd5 {[%clk 0:02:29]} 12. exd5 {[%clk 0:02:31]}  Re8 {[%clk 0:02:26]} 13. O-O {[%clk 0:02:26]}  a5 {[%clk 0:02:23]} 14. Rac1 {[%clk 0:02:25]}  b6 {[%clk 0:02:22]} 15. Na1 {[%clk 0:02:22]}  Nc5 {[%clk 0:02:21]} 16. Bxc5 {[%clk 0:02:21]}  bxc5 {[%clk 0:02:19]} 17. Nc2 {[%clk 0:02:21]}  e4 {[%clk 0:02:18]} 18. Qa3 {[%clk 0:02:12]}  Bf8 {[%clk 0:02:15]} 19. Ne3 {[%clk 0:02:12]}  g6 {[%clk 0:02:15]} 20. Qa4 {[%clk 0:02:01]}  Rb8 {[%clk 0:02:10]} 21. b3 {[%clk 0:01:58]}  h5 {[%clk 0:02:05]} 22. Qc6 {[%clk 0:01:43]}  Bh6 {[%clk 0:02:00]} 23. Rc3 {[%clk 0:01:41]}  Rb6 {[%clk 0:01:56]} 24. Qa4 {[%clk 0:01:38]}  Rb4 {[%clk 0:01:55]} 25. Qc6 {[%clk 0:01:37]}  Bf4 {[%clk 0:01:51]} 26. a3 {[%clk 0:01:25]}  Rb6 {[%clk 0:01:49]} 27. Qa4 {[%clk 0:01:25]}  Rb8 {[%clk 0:01:40]} 28. Rb1 {[%clk 0:01:15]}  Be5 {[%clk 0:01:36]} 29. Rc2 {[%clk 0:01:15]}  Nd7 {[%clk 0:01:33]} 30. g3 {[%clk 0:00:55]}  Bd4 {[%clk 0:01:28]} 31. Kg2 {[%clk 0:00:53]}  Ne5 {[%clk 0:01:26]} 32. b4 {[%clk 0:00:48]}  cxb4 {[%clk 0:01:22]} 33. axb4 {[%clk 0:00:49]}  Bxe3 {[%clk 0:01:17]} 34. fxe3 {[%clk 0:00:48]}  axb4 {[%clk 0:01:00]} 35. Rxb4 {[%clk 0:00:47]}  Rxb4 {[%clk 0:01:00]} 36. Qxb4 {[%clk 0:00:48]}  Qf6 {[%clk 0:00:50]} 37. c5 {[%clk 0:00:46]}  dxc5 {[%clk 0:00:49]} 38. Qxc5 {[%clk 0:00:47]}  Qf5 {[%clk 0:00:38]} 39. Qd4 {[%clk 0:00:41]}  h4 {[%clk 0:00:31]} 40. d6 {[%clk 0:00:40]}  h3+ {[%clk 0:00:29]} 41. Kg1 {[%clk 0:00:38]}  Rb8 {[%clk 0:00:29]} 42. Rc1 {[%clk 0:00:33]}  Rd8 {[%clk 0:00:14]} 43. Rf1 {[%clk 0:00:31]}  Qe6 {[%clk 0:00:14]} 44. Rd1 {[%clk 0:00:31]}  Nc6 {[%clk 0:00:13]} 45. Qd5 {[%clk 0:00:30]}  Qxd5 {[%clk 0:00:11]} 46. Rxd5 {[%clk 0:00:31]}  Kg7 {[%clk 0:00:11]} 47. g4 {[%clk 0:00:29]}  Kf6 {[%clk 0:00:10]} 48. g5+ {[%clk 0:00:27]}  Ke6 {[%clk 0:00:09]} 49. Bc4 {[%clk 0:00:28]}  Rxd6 {[%clk 0:00:08]} 50. Rxd6+ {[%clk 0:00:28]}  Kxd6 {[%clk 0:00:08]} 51. Bxf7 {[%clk 0:00:29]}  Ne5 {[%clk 0:00:08]} 52. Be8 {[%clk 0:00:27]}  Ke7 {[%clk 0:00:08]} 53. Bb5 {[%clk 0:00:26]}  Nf3+ {[%clk 0:00:08]} 54. Kf2 {[%clk 0:00:27]}  Nxg5 {[%clk 0:00:09]} 55. Kg3 {[%clk 0:00:27]}  Kf6 {[%clk 0:00:10]} 56. Bd7 {[%clk 0:00:26]}  Ke5 {[%clk 0:00:08]} 57. Bxh3 {[%clk 0:00:26]}  Nf3 {[%clk 0:00:08]} 58. Bg4 {[%clk 0:00:26]}  Ne1 {[%clk 0:00:08]} 59. Be2 {[%clk 0:00:24]}  Nc2 {[%clk 0:00:08]} 60. Kf2 {[%clk 0:00:24]}  Kf5 {[%clk 0:00:08]} 61. Bd1 {[%clk 0:00:24]}  Nb4 {[%clk 0:00:09]} 62. Kg3 {[%clk 0:00:23]}  Nd3 {[%clk 0:00:07]} 63. Be2 {[%clk 0:00:22]}  Ne5 {[%clk 0:00:07]} 64. h3 {[%clk 0:00:22]}  Nf7 {[%clk 0:00:06]} 65. Bg4+ {[%clk 0:00:20]}  Ke5 {[%clk 0:00:04]} 66. Be2 {[%clk 0:00:20]}  Nd6 {[%clk 0:00:05]} 67. Kg4 {[%clk 0:00:20]}  Nf5 {[%clk 0:00:05]} 68. Kg5 {[%clk 0:00:20]}  Nxe3 {[%clk 0:00:06]} 69. Kxg6 {[%clk 0:00:20]}  Ng2 {[%clk 0:00:06]} 70. Bf1 {[%clk 0:00:19]}  Nf4+ {[%clk 0:00:05]} 71. Kg5 {[%clk 0:00:19]}  e3 {[%clk 0:00:05]} 72. h4 {[%clk 0:00:19]}  e2 {[%clk 0:00:05]} 73. Bxe2 {[%clk 0:00:19]}  Nxe2 {[%clk 0:00:06]} 74. h5 {[%clk 0:00:20]}  Nd4 {[%clk 0:00:04]} 75. h6 {[%clk 0:00:19]}  Ne6+ {[%clk 0:00:05]} 76. Kg6 {[%clk 0:00:20]}  Kd6 {[%clk 0:00:03]} 77. Kf7 {[%clk 0:00:19]}  Ng5+ {[%clk 0:00:03]} 78. Kf6 {[%clk 0:00:19]}  Nh7+ {[%clk 0:00:03]} 79. Kg7 {[%clk 0:00:19]}  Ng5 {[%clk 0:00:02]} 80. Kg6 {[%clk 0:00:19]}  Ne6 {[%clk 0:00:02]} 81. Kf6 {[%clk 0:00:19]}  Nf8 {[%clk 0:00:02]} 82. Kf7 {[%clk 0:00:18]}  Ne6 {[%clk 0:00:02]} 83. Kg8 {[%clk 0:00:19]}  Ng5 {[%clk 0:00:02]} 84. Kg7 {[%clk 0:00:19]}  Ke5 {[%clk 0:00:02]} 85. Kg6 {[%clk 0:00:19]}  Kf4 {[%clk 0:00:03]} 86. Kh5 {[%clk 0:00:18]}  Kf5 {[%clk 0:00:03]} 87. Kh4 {[%clk 0:00:17]}  Nh7 {[%clk 0:00:04]} 88. Kh5 {[%clk 0:00:17]}  Kf6 {[%clk 0:00:04]} 89. Kh4 {[%clk 0:00:17]}  Kg6 {[%clk 0:00:05]} 90. Kg3 {[%clk 0:00:18]}  Kxh6 {[%clk 0:00:06]} 1/2-1/2


[Site "https://www.chess.com"]

[Event "Titled Tuesday Blitz June 21 Early 2022"]
[White "Lucas, Arthur"]
[Black "Nesterov, Arseniy"]
[WhiteFideId "26093073"]
[BlackFideId "24198455"]
[WhiteElo "2129"]
[BlackElo "2489"]
[Result "0-1"]
[Round "01"]
[TimeControl "180+1"]
[Date "2022.06.22"]
[WhiteClock "0:02:13"]
[BlackClock "0:02:32"]

1. e4 {[%clk 0:03:00]}  e5 {[%clk 0:02:59]} 2. Nf3 {[%clk 0:03:01]}  Nc6 {[%clk 0:02:59]} 3. Bc4 {[%clk 0:03:00]}  Nf6 {[%clk 0:02:58]} 4. d4 {[%clk 0:03:01]}  exd4 {[%clk 0:02:56]} 5. e5 {[%clk 0:03:01]}  d5 {[%clk 0:02:56]} 6. Bb5 {[%clk 0:03:02]}  Ne4 {[%clk 0:02:56]} 7. Nxd4 {[%clk 0:03:02]}  Bc5 {[%clk 0:02:56]} 8. Be3 {[%clk 0:03:01]}  O-O {[%clk 0:02:54]} 9. Nxc6 {[%clk 0:03:00]}  bxc6 {[%clk 0:02:53]} 10. Bxc5 {[%clk 0:03:00]}  Nxc5 {[%clk 0:02:54]} 11. Bxc6 {[%clk 0:03:01]}  Rb8 {[%clk 0:02:54]} 12. Qxd5 {[%clk 0:03:00]}  Qe7 {[%clk 0:02:54]} 13. Nc3 {[%clk 0:02:58]}  Rd8 {[%clk 0:02:47]} 14. Qf3 {[%clk 0:02:41]}  Qxe5+ {[%clk 0:02:46]} 15. Kf1 {[%clk 0:02:28]}  Rxb2 {[%clk 0:02:34]} 16. Re1 {[%clk 0:02:16]}  Ba6+ {[%clk 0:02:33]} 17. Bb5 {[%clk 0:02:13]}  Rxb5 {[%clk 0:02:32]} 0-1


[Site "https://www.chess.com"]

[Event "Titled Tuesday Blitz June 21 Early 2022"]
[White "Maiorov, Nikita"]
[Black "So, Wesley"]
[WhiteFideId "13501720"]
[BlackFideId "5202213"]
[WhiteElo "2417"]
[BlackElo "2742"]
[Result "0-1"]
[Round "01"]
[TimeControl "180+1"]
[Date "2022.06.21"]
[WhiteClock "0:00:36"]
[BlackClock "0:01:16"]

1. d4 {[%clk 0:02:58]}  Nf6 {[%clk 0:02:59]} 2. c4 {[%clk 0:02:57]}  e6 {[%clk 0:02:58]} 3. Nf3 {[%clk 0:02:56]}  d5 {[%clk 0:02:58]} 4. Nc3 {[%clk 0:02:55]}  Bb4 {[%clk 0:02:57]} 5. Bg5 {[%clk 0:02:43]}  dxc4 {[%clk 0:02:56]} 6. e4 {[%clk 0:02:41]}  h6 {[%clk 0:02:56]} 7. Bxf6 {[%clk 0:02:41]}  Qxf6 {[%clk 0:02:57]} 8. Bxc4 {[%clk 0:02:40]}  c5 {[%clk 0:02:57]} 9. O-O {[%clk 0:02:40]}  O-O {[%clk 0:02:52]} 10. e5 {[%clk 0:02:39]}  Qd8 {[%clk 0:02:52]} 11. Ne4 {[%clk 0:02:38]}  cxd4 {[%clk 0:02:52]} 12. Qe2 {[%clk 0:02:37]}  Be7 {[%clk 0:02:51]} 13. Rfd1 {[%clk 0:02:37]}  Qa5 {[%clk 0:02:49]} 14. a3 {[%clk 0:02:35]}  Rd8 {[%clk 0:02:47]} 15. g4 {[%clk 0:02:32]}  Nd7 {[%clk 0:02:40]} 16. Ng3 {[%clk 0:01:32]}  Nf8 {[%clk 0:02:17]} 17. h4 {[%clk 0:01:22]}  Bd7 {[%clk 0:02:12]} 18. g5 {[%clk 0:01:20]}  hxg5 {[%clk 0:02:05]} 19. Nxg5 {[%clk 0:01:18]}  Bxg5 {[%clk 0:02:01]} 20. hxg5 {[%clk 0:01:18]}  Ng6 {[%clk 0:02:02]} 21. Re1 {[%clk 0:01:17]}  Bc6 {[%clk 0:01:57]} 22. Nh5 {[%clk 0:01:13]}  d3 {[%clk 0:01:46]} 23. Bxd3 {[%clk 0:01:02]}  Rd4 {[%clk 0:01:31]} 24. Bxg6 {[%clk 0:00:48]}  fxg6 {[%clk 0:01:32]} 25. Ng3 {[%clk 0:00:48]}  Rf8 {[%clk 0:01:27]} 26. Rad1 {[%clk 0:00:43]}  Qd5 {[%clk 0:01:26]} 27. Qf1 {[%clk 0:00:39]}  Rf3 {[%clk 0:01:19]} 28. Rxd4 {[%clk 0:00:38]}  Rxg3+ {[%clk 0:01:15]} 29. fxg3 {[%clk 0:00:37]}  Qh1+ {[%clk 0:01:14]} 30. Kf2 {[%clk 0:00:36]}  Qf3+ {[%clk 0:01:15]} 31. Kg1 {[%clk 0:00:36]}  Qxg3+ {[%clk 0:01:16]} 0-1


[Site "https://www.chess.com"]

[Event "Titled Tuesday Blitz June 21 Early 2022"]
[White "Mirzoev, Azer"]
[Black "Krishnakumar, Sriram"]
[WhiteFideId "13400304"]
[BlackFideId "30915856"]
[WhiteElo "2525"]
[BlackElo "2378"]
[Result "1-0"]
[Round "01"]
[TimeControl "180+1"]
[Date "2022.06.22"]
[WhiteClock "0:00:18"]
[BlackClock "0:00:29"]

1. c4 {[%clk 0:02:58]}  c6 {[%clk 0:02:56]} 2. e4 {[%clk 0:02:57]}  d5 {[%clk 0:02:55]} 3. exd5 {[%clk 0:02:54]}  cxd5 {[%clk 0:02:56]} 4. cxd5 {[%clk 0:02:55]}  Qxd5 {[%clk 0:02:57]} 5. Nc3 {[%clk 0:02:55]}  Qd8 {[%clk 0:02:52]} 6. d4 {[%clk 0:02:55]}  Nf6 {[%clk 0:02:52]} 7. Nf3 {[%clk 0:02:55]}  e6 {[%clk 0:02:47]} 8. Bd3 {[%clk 0:02:53]}  Bd6 {[%clk 0:02:47]} 9. O-O {[%clk 0:02:53]}  Nc6 {[%clk 0:02:47]} 10. Re1 {[%clk 0:02:48]}  O-O {[%clk 0:02:47]} 11. Bg5 {[%clk 0:02:48]}  h6 {[%clk 0:02:44]} 12. Bh4 {[%clk 0:02:47]}  Be7 {[%clk 0:02:43]} 13. a3 {[%clk 0:02:44]}  Nd5 {[%clk 0:02:40]} 14. Bg3 {[%clk 0:02:44]}  Bf6 {[%clk 0:02:23]} 15. Be4 {[%clk 0:02:43]}  Nb6 {[%clk 0:02:20]} 16. Be5 {[%clk 0:02:28]}  Bxe5 {[%clk 0:02:18]} 17. dxe5 {[%clk 0:02:28]}  Qxd1 {[%clk 0:02:14]} 18. Raxd1 {[%clk 0:02:27]}  Nc4 {[%clk 0:02:14]} 19. Bxc6 {[%clk 0:02:14]}  bxc6 {[%clk 0:02:13]} 20. Na4 {[%clk 0:02:03]}  c5 {[%clk 0:02:00]} 21. Rc1 {[%clk 0:02:01]}  Nb6 {[%clk 0:01:51]} 22. Nxc5 {[%clk 0:02:00]}  Rd8 {[%clk 0:01:48]} 23. b4 {[%clk 0:01:58]}  a5 {[%clk 0:01:47]} 24. b5 {[%clk 0:01:58]}  Bd7 {[%clk 0:01:43]} 25. a4 {[%clk 0:01:51]}  Rac8 {[%clk 0:01:41]} 26. Nxd7 {[%clk 0:01:44]}  Rxd7 {[%clk 0:01:27]} 27. Rxc8+ {[%clk 0:01:43]}  Nxc8 {[%clk 0:01:28]} 28. h4 {[%clk 0:01:18]}  Nb6 {[%clk 0:01:28]} 29. Re4 {[%clk 0:01:17]}  Rd1+ {[%clk 0:01:25]} 30. Kh2 {[%clk 0:01:18]}  Nd5 {[%clk 0:01:25]} 31. h5 {[%clk 0:01:13]}  Kf8 {[%clk 0:01:24]} 32. Rc4 {[%clk 0:01:11]}  Nb6 {[%clk 0:01:23]} 33. Rc6 {[%clk 0:01:04]}  Nxa4 {[%clk 0:01:22]} 34. Rc8+ {[%clk 0:01:03]}  Ke7 {[%clk 0:01:20]} 35. Ra8 {[%clk 0:01:03]}  Rd5 {[%clk 0:01:08]} 36. Rxa5 {[%clk 0:01:00]}  Nb6 {[%clk 0:01:08]} 37. g4 {[%clk 0:00:52]}  Nc4 {[%clk 0:00:53]} 38. Ra7+ {[%clk 0:00:51]}  Ke8 {[%clk 0:00:53]} 39. Rc7 {[%clk 0:00:48]}  Nb6 {[%clk 0:00:46]} 40. Rb7 {[%clk 0:00:47]}  Rxb5 {[%clk 0:00:45]} 41. Nd4 {[%clk 0:00:46]}  Rb2 {[%clk 0:00:42]} 42. Kg3 {[%clk 0:00:31]}  Nc4 {[%clk 0:00:42]} 43. Rxb2 {[%clk 0:00:29]}  Nxb2 {[%clk 0:00:43]} 44. f4 {[%clk 0:00:30]}  Nc4 {[%clk 0:00:42]} 45. Kf3 {[%clk 0:00:30]}  Nb6 {[%clk 0:00:43]} 46. Ke4 {[%clk 0:00:30]}  Nd5 {[%clk 0:00:43]} 47. f5 {[%clk 0:00:28]}  Ke7 {[%clk 0:00:42]} 48. fxe6 {[%clk 0:00:27]}  fxe6 {[%clk 0:00:43]} 49. Ne2 {[%clk 0:00:27]}  Nb6 {[%clk 0:00:41]} 50. Kd4 {[%clk 0:00:27]}  Nd7 {[%clk 0:00:42]} 51. Nf4 {[%clk 0:00:25]}  Kf7 {[%clk 0:00:42]} 52. Ng6 {[%clk 0:00:25]}  Ke8 {[%clk 0:00:38]} 53. Nh4 {[%clk 0:00:23]}  Kf7 {[%clk 0:00:38]} 54. Nf3 {[%clk 0:00:23]}  Ke8 {[%clk 0:00:38]} 55. Kc4 {[%clk 0:00:23]}  Kf7 {[%clk 0:00:37]} 56. Kb5 {[%clk 0:00:23]}  Ke8 {[%clk 0:00:36]} 57. Kc6 {[%clk 0:00:23]}  Ke7 {[%clk 0:00:36]} 58. Kc7 {[%clk 0:00:23]}  Nc5 {[%clk 0:00:36]} 59. Nh4 {[%clk 0:00:22]}  Nd3 {[%clk 0:00:36]} 60. Ng6+ {[%clk 0:00:22]}  Kf7 {[%clk 0:00:35]} 61. Kd6 {[%clk 0:00:22]}  Nf2 {[%clk 0:00:35]} 62. Nf4 {[%clk 0:00:22]}  Nxg4 {[%clk 0:00:35]} 63. Nxe6 {[%clk 0:00:22]}  Ne3 {[%clk 0:00:31]} 64. Nf4 {[%clk 0:00:20]}  Nf5+ {[%clk 0:00:30]} 65. Kd7 {[%clk 0:00:20]}  Ne7 {[%clk 0:00:28]} 66. e6+ {[%clk 0:00:20]}  Kf6 {[%clk 0:00:26]} 67. Kd6 {[%clk 0:00:19]}  Nf5+ {[%clk 0:00:25]} 68. Kd7 {[%clk 0:00:19]}  Ne7 {[%clk 0:00:26]} 69. Ne2 {[%clk 0:00:17]}  Nf5 {[%clk 0:00:25]} 70. Nc3 {[%clk 0:00:16]}  Ne7 {[%clk 0:00:25]} 71. Ne4+ {[%clk 0:00:16]}  Ke5 {[%clk 0:00:24]} 72. Kxe7 {[%clk 0:00:16]}  Kxe4 {[%clk 0:00:25]} 73. Kf7 {[%clk 0:00:17]}  Kf5 {[%clk 0:00:25]} 74. e7 {[%clk 0:00:18]}  Kg5 {[%clk 0:00:26]} 75. e8=Q {[%clk 0:00:18]}  Kxh5 {[%clk 0:00:27]} 76. Kxg7+ {[%clk 0:00:18]}  Kg4 {[%clk 0:00:28]} 77. Qg6+ {[%clk 0:00:18]}  Kf3 {[%clk 0:00:29]} 78. Qxh6 {[%clk 0:00:18]}  Ke2 {[%clk 0:00:29]} 79. Qg5 {[%clk 0:00:18]} 1-0


[Site "https://www.chess.com"]

[Event "Titled Tuesday Blitz June 21 Early 2022"]
[White "Mrudul Dehankar"]
[Black "Kozin, Yuri"]
[WhiteFideId "25096990"]
[BlackFideId "4129920"]
[WhiteElo "1766"]
[BlackElo "2601"]
[Result "1-0"]
[Round "01"]
[TimeControl "180+1"]
[Date "2022.06.22"]
[WhiteClock "0:00:06"]
[BlackClock "0:00:01"]

1. e4 {[%clk 0:02:50]}  c5 {[%clk 0:02:59]} 2. Nf3 {[%clk 0:02:49]}  e6 {[%clk 0:03:00]} 3. d4 {[%clk 0:02:49]}  cxd4 {[%clk 0:03:00]} 4. Nxd4 {[%clk 0:02:49]}  a6 {[%clk 0:03:01]} 5. Bd3 {[%clk 0:02:39]}  Qc7 {[%clk 0:03:00]} 6. O-O {[%clk 0:02:35]}  Nc6 {[%clk 0:03:01]} 7. Nxc6 {[%clk 0:02:30]}  dxc6 {[%clk 0:03:02]} 8. f4 {[%clk 0:02:25]}  e5 {[%clk 0:03:01]} 9. Nc3 {[%clk 0:02:13]}  Nf6 {[%clk 0:02:58]} 10. f5 {[%clk 0:02:06]}  h6 {[%clk 0:02:54]} 11. a4 {[%clk 0:01:50]}  a5 {[%clk 0:02:50]} 12. Qf3 {[%clk 0:01:40]}  b6 {[%clk 0:02:34]} 13. Kh1 {[%clk 0:01:38]}  Ba6 {[%clk 0:02:30]} 14. Bxa6 {[%clk 0:01:29]}  Rxa6 {[%clk 0:02:29]} 15. Be3 {[%clk 0:01:29]}  Ra8 {[%clk 0:02:21]} 16. Rad1 {[%clk 0:01:13]}  Bb4 {[%clk 0:02:05]} 17. Ne2 {[%clk 0:01:11]}  O-O {[%clk 0:01:53]} 18. g4 {[%clk 0:01:03]}  Nh7 {[%clk 0:01:47]} 19. h4 {[%clk 0:01:01]}  Be7 {[%clk 0:01:46]} 20. Qg3 {[%clk 0:00:45]}  f6 {[%clk 0:01:32]} 21. Qf2 {[%clk 0:00:40]}  Rab8 {[%clk 0:01:29]} 22. Ng3 {[%clk 0:00:39]}  Kh8 {[%clk 0:01:25]} 23. Kg2 {[%clk 0:00:37]}  Rfd8 {[%clk 0:01:25]} 24. Rxd8+ {[%clk 0:00:35]}  Qxd8 {[%clk 0:01:24]} 25. Rh1 {[%clk 0:00:35]}  b5 {[%clk 0:01:23]} 26. axb5 {[%clk 0:00:31]}  cxb5 {[%clk 0:01:22]} 27. Qe2 {[%clk 0:00:30]}  b4 {[%clk 0:01:17]} 28. Rd1 {[%clk 0:00:23]}  Qc7 {[%clk 0:01:13]} 29. Nf1 {[%clk 0:00:19]}  a4 {[%clk 0:01:11]} 30. Nh2 {[%clk 0:00:15]}  a3 {[%clk 0:01:10]} 31. bxa3 {[%clk 0:00:15]}  bxa3 {[%clk 0:01:11]} 32. Nf3 {[%clk 0:00:15]}  Rb2 {[%clk 0:01:06]} 33. Ne1 {[%clk 0:00:14]}  a2 {[%clk 0:01:06]} 34. Ra1 {[%clk 0:00:14]}  Qa5 {[%clk 0:01:00]} 35. Qc4 {[%clk 0:00:11]}  Qa3 {[%clk 0:00:46]} 36. Bd2 {[%clk 0:00:09]}  Qc5 {[%clk 0:00:29]} 37. Qd3 {[%clk 0:00:03]}  Qa7 {[%clk 0:00:16]} 38. Bc3 {[%clk 0:00:03]}  Rb1 {[%clk 0:00:15]} 39. Qd5 {[%clk 0:00:02]}  Rxa1 {[%clk 0:00:13]} 40. Bxa1 {[%clk 0:00:03]}  Nf8 {[%clk 0:00:13]} 41. Nd3 {[%clk 0:00:03]}  Nd7 {[%clk 0:00:12]} 42. g5 {[%clk 0:00:04]}  hxg5 {[%clk 0:00:12]} 43. hxg5 {[%clk 0:00:04]}  fxg5 {[%clk 0:00:11]} 44. Nxe5 {[%clk 0:00:04]}  Nxe5 {[%clk 0:00:11]} 45. Qxe5 {[%clk 0:00:04]}  Bf6 {[%clk 0:00:11]} 46. Qe8+ {[%clk 0:00:04]}  Kh7 {[%clk 0:00:12]} 47. Qg6+ {[%clk 0:00:04]}  Kg8 {[%clk 0:00:11]} 48. Bxf6 {[%clk 0:00:01]}  a1=Q {[%clk 0:00:05]} 49. Qe8+ {[%clk 0:00:02]}  Kh7 {[%clk 0:00:05]} 50. Qh5+ {[%clk 0:00:02]}  Kg8 {[%clk 0:00:04]} 51. Qe8+ {[%clk 0:00:03]}  Kh7 {[%clk 0:00:04]} 52. Bxa1 {[%clk 0:00:03]}  Qxa1 {[%clk 0:00:04]} 53. Qg6+ {[%clk 0:00:04]}  Kg8 {[%clk 0:00:04]} 54. Qxg5 {[%clk 0:00:05]}  Qd1 {[%clk 0:00:04]} 55. Qe3 {[%clk 0:00:03]}  Qxc2+ {[%clk 0:00:04]} 56. Kf3 {[%clk 0:00:03]}  Qd1+ {[%clk 0:00:04]} 57. Kf4 {[%clk 0:00:03]}  Qf1+ {[%clk 0:00:03]} 58. Qf3 {[%clk 0:00:04]}  Qc4 {[%clk 0:00:03]} 59. Kg4 {[%clk 0:00:04]}  Qc7 {[%clk 0:00:03]} 60. Qf4 {[%clk 0:00:03]}  Qc2 {[%clk 0:00:02]} 61. e5 {[%clk 0:00:03]}  Qg2+ {[%clk 0:00:03]} 62. Qg3 {[%clk 0:00:03]}  Qe4+ {[%clk 0:00:03]} 63. Qf4 {[%clk 0:00:03]}  Qe2+ {[%clk 0:00:03]} 64. Kh4 {[%clk 0:00:03]}  Qe1+ {[%clk 0:00:03]} 65. Kh3 {[%clk 0:00:03]}  Qh1+ {[%clk 0:00:03]} 66. Kg3 {[%clk 0:00:04]}  Qg1+ {[%clk 0:00:03]} 67. Kf3 {[%clk 0:00:04]}  Qf1+ {[%clk 0:00:04]} 68. Ke4 {[%clk 0:00:05]}  Qe2+ {[%clk 0:00:04]} 69. Qe3 {[%clk 0:00:04]}  Qc4+ {[%clk 0:00:04]} 70. Kf3 {[%clk 0:00:04]}  Qf1+ {[%clk 0:00:04]} 71. Ke4 {[%clk 0:00:04]}  Qc4+ {[%clk 0:00:04]} 72. Qd4 {[%clk 0:00:04]}  Qe2+ {[%clk 0:00:03]} 73. Kd5 {[%clk 0:00:05]}  Qf3+ {[%clk 0:00:04]} 74. Ke6 {[%clk 0:00:05]}  Qc6+ {[%clk 0:00:03]} 75. Qd6 {[%clk 0:00:06]}  Qc3 {[%clk 0:00:01]} 76. Qd8+ {[%clk 0:00:05]}  Kh7 {[%clk 0:00:01]} 77. Qh4+ {[%clk 0:00:06]}  Kg8 {[%clk 0:00:02]} 78. Qd8+ {[%clk 0:00:06]}  Kh7 {[%clk 0:00:03]} 79. Qd5 {[%clk 0:00:07]}  Qc8+ {[%clk 0:00:02]} 80. Ke7 {[%clk 0:00:07]}  Qc7+ {[%clk 0:00:02]} 81. Ke6 {[%clk 0:00:05]}  Qc8+ {[%clk 0:00:02]} 82. Qd7 {[%clk 0:00:05]}  Qc4+ {[%clk 0:00:02]} 83. Ke7 {[%clk 0:00:05]}  Qf4 {[%clk 0:00:02]} 84. Qe6 {[%clk 0:00:05]}  Qg5+ {[%clk 0:00:02]} 85. f6 {[%clk 0:00:05]}  gxf6 {[%clk 0:00:01]} 86. exf6 {[%clk 0:00:05]}  Qc5+ {[%clk 0:00:01]} 87. Qd6 {[%clk 0:00:06]} 1-0


[Site "https://www.chess.com"]

[Event "Titled Tuesday Blitz June 21 Early 2022"]
[White "Namitbir Singh Walia"]
[Black "Halkias, Stelios"]
[WhiteFideId "35071068"]
[BlackFideId "4201809"]
[WhiteElo "1565"]
[BlackElo "2453"]
[Result "0-1"]
[Round "01"]
[TimeControl "180+1"]
[Date "2022.06.22"]
[WhiteClock "0:00:04"]
[BlackClock "0:00:26"]

1. d4 {[%clk 0:03:00]}  Nf6 {[%clk 0:02:59]} 2. c4 {[%clk 0:03:00]}  g6 {[%clk 0:02:58]} 3. g3 {[%clk 0:02:59]}  Bg7 {[%clk 0:02:57]} 4. Bg2 {[%clk 0:03:00]}  c5 {[%clk 0:02:58]} 5. d5 {[%clk 0:02:59]}  d6 {[%clk 0:02:57]} 6. Nc3 {[%clk 0:02:58]}  e6 {[%clk 0:02:56]} 7. e4 {[%clk 0:02:57]}  exd5 {[%clk 0:02:56]} 8. cxd5 {[%clk 0:02:58]}  O-O {[%clk 0:02:56]} 9. Nf3 {[%clk 0:02:52]}  Re8 {[%clk 0:02:55]} 10. Nd2 {[%clk 0:02:53]}  b5 {[%clk 0:02:46]} 11. Nxb5 {[%clk 0:02:45]}  Ba6 {[%clk 0:02:34]} 12. Nc3 {[%clk 0:02:25]}  Nbd7 {[%clk 0:02:02]} 13. Bf1 {[%clk 0:02:16]}  c4 {[%clk 0:01:47]} 14. Bg2 {[%clk 0:01:59]}  Nc5 {[%clk 0:01:43]} 15. O-O {[%clk 0:01:59]}  Rc8 {[%clk 0:01:39]} 16. Kh1 {[%clk 0:01:16]}  h5 {[%clk 0:01:28]} 17. h3 {[%clk 0:01:09]}  Qd7 {[%clk 0:01:18]} 18. Kh2 {[%clk 0:00:54]}  Nd3 {[%clk 0:01:06]} 19. f4 {[%clk 0:00:50]}  Rb8 {[%clk 0:01:06]} 20. Rb1 {[%clk 0:00:50]}  Qc8 {[%clk 0:00:54]} 21. Qf3 {[%clk 0:00:34]}  Nd7 {[%clk 0:00:53]} 22. Rd1 {[%clk 0:00:14]}  N7c5 {[%clk 0:00:51]} 23. Bf1 {[%clk 0:00:10]}  Bxc3 {[%clk 0:00:48]} 24. bxc3 {[%clk 0:00:09]}  Rxb1 {[%clk 0:00:48]} 25. Nxb1 {[%clk 0:00:10]}  Nxe4 {[%clk 0:00:48]} 26. Ba3 {[%clk 0:00:04]}  Qb7 {[%clk 0:00:26]} 0-1


[Site "https://www.chess.com"]